bitfinex-derivatives/quotes_ETHF0:USTF0_20260208
["timestamp","ask_amount","ask_price","bid_price","bid_amount"]
[1770578917501,0.00527441,2114.2,2113.4,6.32185609]
[1770578917796,0.00527441,2114.2,2113.4,7.4862763]
[1770578919104,0.00527441,2114.2,2113.6,6.08509609]
[1770578919406,5.93094448,2114.8,2113.8,6.08509609]
[1770578920304,5.93503839,2114.8,2113.8,6.32181609]
[1770578922107,7.0994586,2114.8,2113.8,6.32181609]
[1770578925307,5.93503839,2114.8,2113.8,6.32181609]
[1770578931714,7.0994586,2114.8,2113.8,6.32181609]
[1770578941724,7.0994586,2114.8,2113.8,6.08509609]
[1770578941926,5.5575324,2114.4,2113.4,5.89427119]
[1770578949137,6.72195261,2114.4,2113.4,5.89427119]
[1770578968860,1.16499607,2114.1,2113.4,5.89427119]
[1770578969158,4.93093807,2114.0,2113.4,5.89427119]
[1770578970860,4.93093807,2113.8,2113.2,4.87196132]
[1770578971160,6.09593414,2113.7,2113.2,4.87196132]
[1770578974166,6.09593414,2113.7,2113.1,4.87196132]
[1770578976670,4.93093807,2113.4,2112.9,4.87585403]
[1770578977567,4.93093807,2113.6,2112.9,4.87585403]
[1770578977768,4.93093807,2114.0,2113.2,4.87196132]
[1770578988677,4.8792742,2113.8,2113.2,4.87196132]
[1770578991074,4.8792742,2113.8,2113.2,4.87196132]
[1770578992178,4.8792742,2114.0,2113.2,4.87196132]
[1770578992380,4.8792742,2114.0,2113.4,4.76391279]
[1770578996184,1.16499607,2114.3,2113.2,4.76391279]
[1770578996185,4.8792742,2113.8,2113.2,4.76391279]
[1770578996676,4.8792742,2113.8,2113.0,4.76391279]
[1770578996880,4.8792742,2113.6,2112.9,4.7678055]
[1770578997184,4.8792742,2113.2,2112.7,4.76391279]
[1770578998091,4.8792742,2113.2,2112.7,4.76926911]
[1770578998092,4.88371902,2113.2,2112.7,4.76926911]
[1770579000183,4.8792742,2113.6,2112.9,4.76391279]
[1770579000992,4.8792742,2113.8,2112.9,4.76391279]
[1770579001192,4.88261368,2113.8,2112.9,4.76391279]
[1770579002498,0.00333948,2113.8,2113.1,4.76391279]
[1770579002790,4.88261368,2113.8,2113.1,4.76391279]
[1770579006793,4.88261368,2113.8,2113.3,4.76391279]
[1770579007795,0.00333948,2113.8,2113.3,4.76391279]
[1770579007998,4.8792742,2113.9,2113.3,4.76391279]
[1770579008991,4.88478077,2113.9,2113.3,4.76391279]
[1770579010695,0.00550657,2113.9,2113.5,4.76391279]
[1770579011388,4.88478077,2113.9,2113.5,4.76391279]
[1770579012094,0.00550657,2113.9,2113.5,4.76391279]
[1770579012395,4.88478077,2113.9,2113.1,4.76391279]
[1770579012596,6.04977684,2113.9,2113.1,4.76391279]
[1770579015186,4.88478077,2113.9,2113.1,4.76391279]
[1770579015393,0.00550657,2113.9,2113.3,4.22173432]
[1770579015593,0.00550657,2113.9,2113.5,4.56878299]
[1770579017100,4.43454225,2113.9,2113.5,4.56878299]
[1770579020003,0.00550657,2113.9,2113.5,4.56878299]
[1770579020603,4.43454225,2113.9,2113.5,4.56878299]
[1770579021608,0.00550657,2113.9,2113.5,4.56878299]
[1770579021904,4.43454225,2113.9,2113.5,4.56878299]
[1770579022207,0.00550657,2113.9,2113.5,4.56878299]
[1770579022407,4.43454225,2113.9,2113.5,4.56878299]
[1770579029203,4.42903568,2114.4,2113.5,4.56878299]
[1770579029414,4.42903568,2115.0,2113.8,4.56878299]
[1770579029803,4.42903568,2115.0,2113.9,4.56878299]
[1770579030308,4.43405127,2115.0,2113.9,4.56878299]
[1770579032306,0.00501559,2115.0,2113.9,4.56878299]
[1770579032512,4.43405127,2115.0,2114.1,4.56878299]
[1770579033206,4.43405127,2115.0,2114.2,4.56878299]
[1770579033406,4.43405127,2115.0,2114.2,4.57456189]
[1770579036615,0.00501559,2115.0,2114.2,4.57456189]
[1770579036811,4.42903568,2115.2,2114.4,4.56878299]
[1770579037006,4.42903568,2115.5,2114.4,4.56878299]
[1770579037712,4.43469489,2115.5,2114.4,4.56878299]
[1770579037913,4.43469489,2115.5,2114.4,4.80543299]
[1770579042012,0.00565921,2115.5,2114.4,4.80543299]
[1770579042207,4.43469489,2115.5,2114.4,4.80543299]
[1770579043912,4.42903568,2115.8,2115.0,4.56878299]
[1770579044111,4.42903568,2115.8,2114.8,4.56878299]
[1770579045017,4.15062876,2115.6,2114.8,4.56878299]
[1770579053221,4.15062876,2115.5,2114.3,4.24956633]
[1770579053523,4.15062876,2115.5,2114.2,0.0057789]
[1770579053524,4.15062876,2114.8,2114.2,4.25534523]
[1770579053722,4.15062876,2115.1,2114.2,4.25534523]
[1770579054418,4.15062876,2115.4,2114.2,4.49201523]
[1770579055716,4.15062876,2115.4,2114.2,7.31168167]
[1770579055921,4.15062876,2115.4,2114.3,4.24956633]
[1770579056327,4.15062876,2115.4,2114.4,4.24956633]
[1770579058328,4.15062876,2115.4,2114.5,4.24956633]
[1770579060428,4.15062876,2115.6,2114.7,4.24956633]
[1770579060729,4.15062876,2115.6,2114.8,4.24956633]
[1770579061331,4.15062876,2115.6,2114.8,4.48616633]
[1770579061532,4.15618751,2115.8,2115.0,4.24956633]
[1770579062923,4.15618751,2115.8,2115.0,4.54903886]
[1770579063124,4.15618751,2115.8,2115.0,4.24956633]
[1770579066735,4.15618751,2115.8,2115.0,4.5597505]
[1770579067836,0.00555875,2115.8,2115.0,4.7963305]
[1770579068141,4.15062876,2116.4,2115.2,4.24956633]
[1770579068542,4.15062876,2116.4,2115.3,4.24956633]
[1770579069041,4.15561523,2116.4,2115.3,4.24956633]
[1770579079745,3.93144025,2116.3,2115.1,2.81966644]
[1770579079945,4.16790025,2116.2,2114.9,3.87956018]
[1770579080648,3.93144025,2116.1,2114.6,3.87956018]
[1770579082651,3.93144025,2116.1,2114.6,4.17820928]
[1770579082852,3.93144025,2116.0,2114.6,4.17820928]
[1770579085853,3.93144025,2115.6,2114.4,3.87956018]
[1770579086061,3.93144025,2115.4,2114.3,3.87956018]
[1770579086456,3.93144025,2115.4,2114.2,0.0057789]
[1770579086656,3.93144025,2115.4,2113.4,12.7]
[1770579086657,3.93144025,2114.9,2114.0,3.87956018]
[1770579087661,3.93475379,2114.9,2114.0,3.88328471]
[1770579093259,0.00331354,2114.9,2114.0,3.88328471]
[1770579094458,3.93144025,2115.3,2114.2,3.87956018]
[1770579095463,3.93753838,2115.3,2114.2,3.87956018]
[1770579101564,3.93753838,2115.3,2114.2,4.11623018]
[1770579104871,1.16389566,2115.0,2114.2,4.11623018]
[1770579105074,4.05472894,2114.5,2114.0,3.8842623]
[1770579105567,4.05472894,2114.5,2114.0,0.00372453]
[1770579105776,4.05472894,2114.3,2113.7,3.88053777]
[1770579106872,4.05472894,2114.3,2113.7,3.8853591]
[1770579107473,4.05472894,2114.3,2113.7,0.00482133]
[1770579109672,4.05472894,2114.3,2113.7,3.8853591]
[1770579111976,4.05472894,2114.3,2113.7,0.00482133]
[1770579112368,4.05472894,2114.3,2113.7,3.8853591]
[1770579113076,4.05472894,2114.9,2113.7,3.8853591]
[1770579113583,4.05472894,2114.9,2113.7,4.1220891]
[1770579113876,4.05472894,2114.9,2114.0,3.88053777]
[1770579122277,4.05472894,2114.8,2113.8,3.88053777]
[1770579122479,4.05472894,2114.8,2113.7,3.8853591]
[1770579128773,4.05472894,2115.2,2114.3,3.88053777]
[1770579128979,4.05472894,2114.9,2114.3,3.88053777]
[1770579129278,4.05472894,2114.7,2113.9,3.88053777]
[1770579129478,4.05472894,2114.5,2113.9,3.88053777]
[1770579147598,3.8068346,2114.3,2113.8,3.97530531]
[1770579155198,3.8068346,2114.1,2113.4,3.97530531]
[1770579155404,3.8068346,2114.1,2113.3,3.97530531]
[1770579155598,3.8068346,2114.0,2113.3,3.97530531]
[1770579156404,3.8068346,2114.0,2113.3,3.9798774]
[1770579157908,46.26923102,2114.0,2113.3,0.00457209]
[1770579158104,3.8068346,2113.9,2113.3,0.00457209]
[1770579158408,3.8068346,2113.7,2112.8,3.97530531]
[1770579158705,3.8068346,2113.6,2112.7,3.97530531]
[1770579159312,3.81290725,2113.6,2112.7,3.97941746]
[1770579167709,3.96336146,2113.5,2112.1,3.83737821]
[1770579168015,3.96336146,2113.5,2112.1,4.13982578]
[1770579168218,3.96336146,2113.4,2112.1,4.13982578]
[1770579168410,3.96336146,2113.2,2112.1,3.83737821]
[1770579168607,3.96336146,2113.2,2112.0,3.83737821]
[1770579168811,3.96336146,2112.9,2112.0,3.84111135]
[1770579169020,3.96336146,2112.7,2112.0,3.84111135]
[1770579169916,27.82036146,2112.8,2112.0,3.84111135]
[1770579170816,23.857,2112.8,2112.0,3.84111135]
[1770579171121,3.96336146,2113.4,2112.0,3.84111135]
[1770579171415,3.96336146,2113.2,2112.0,3.84111135]
[1770579171618,3.96336146,2113.5,2112.4,3.83737821]
[1770579172420,27.95343411,2113.6,2112.4,4.07425821]
[1770579172618,3.96336146,2113.5,2112.4,4.07425821]
[1770579172814,23.99007265,2113.6,2112.4,4.07425821]
[1770579173021,27.95343411,2113.6,2112.6,3.83737821]
[1770579174125,3.96336146,2113.5,2112.6,3.83737821]
[1770579174522,27.95343411,2113.6,2112.6,3.83737821]
[1770579175026,3.96336146,2113.5,2112.6,3.83737821]
[1770579180428,3.96336146,2113.5,2112.7,0.23684]
[1770579180730,23.99007265,2113.6,2112.9,3.83737821]
[1770579180731,0.00607265,2113.6,2112.9,3.83737821]
[1770579181328,0.00607265,2113.6,2113.1,3.83737821]
[1770579181534,3.96336146,2113.9,2113.1,3.83737821]
[1770579182425,3.96842258,2113.9,2113.1,3.83737821]
[1770579184531,3.96842258,2113.9,2112.8,2.83264455]
[1770579184532,0.00506112,2113.9,2113.3,3.83737821]
[1770579185236,3.96842258,2113.9,2113.3,3.83737821]
[1770579187137,0.00506112,2113.9,2113.3,3.83737821]
[1770579187637,3.96842258,2113.9,2113.3,3.83737821]
[1770579192236,3.96842258,2113.9,2113.2,0.23678]
[1770579192237,3.96842258,2113.9,2113.0,6.67002276]
[1770579192435,3.96842258,2113.9,2112.6,3.83737821]
[1770579192640,3.96336146,2113.7,2112.6,3.83737821]
[1770579195835,3.96336146,2113.7,2112.4,3.77514528]
[1770579196040,3.70209353,2113.4,2112.4,3.77514528]
[1770579206848,3.70209353,2113.3,2112.4,3.77514528]
[1770579207953,3.70209353,2113.0,2112.2,4.01204528]
[1770579208251,3.70209353,2113.0,2112.2,3.77514528]
[1770579210754,3.70209353,2112.7,2112.0,3.77887842]
[1770579212059,3.70209353,2112.9,2112.0,3.77887842]
[1770579212842,3.70209353,2112.9,2112.2,3.77514528]
[1770579214356,3.70209353,2112.7,2112.1,3.77514528]
[1770579215549,3.70209353,2112.7,2112.0,3.77887842]
[1770579215754,3.70209353,2112.6,2112.0,3.77887842]
[1770579217764,24.973,2112.7,2112.0,3.77887842]
[1770579217963,28.67509353,2112.7,2112.0,3.77887842]
[1770579219664,3.70209353,2112.6,2112.0,3.77887842]
[1770579220562,3.59551573,2112.6,2112.0,3.77887842]
[1770579221167,28.67509353,2112.7,2112.0,3.77887842]
[1770579223169,3.70209353,2112.6,2112.0,3.77887842]
[1770579223668,24.973,2112.7,2112.0,3.77887842]
[1770579223864,3.70209353,2112.6,2112.0,0.00373314]
[1770579224171,3.70209353,2112.6,2112.0,3.77887842]
[1770579224872,24.973,2112.7,2112.0,3.77887842]
[1770579225066,28.83299305,2112.7,2112.0,3.77887842]
[1770579225972,3.85999305,2112.9,2112.1,3.60395783]
[1770579228569,3.85999305,2112.9,2112.0,0.00373314]
[1770579228777,3.85999305,2112.7,2112.0,3.60769097]
[1770579229269,3.85999305,2112.7,2112.0,0.00373314]
[1770579229471,3.85999305,2112.6,2112.0,3.60769097]
[1770579230175,3.85999305,2112.9,2112.0,3.60769097]
[1770579232182,3.85999305,2112.9,2112.1,3.60395783]
[1770579234683,3.85999305,2112.9,2112.0,0.00373314]
[1770579234684,46.32238947,2112.9,2112.0,0.00373314]
[1770579234884,3.85999305,2112.8,2112.0,3.60769097]
[1770579235184,3.85999305,2112.7,2112.0,3.60769097]
[1770579235577,3.85999305,2112.6,2112.0,0.00373314]
[1770579235778,3.85999305,2112.6,2112.0,3.60769097]
[1770579240582,3.85999305,2112.6,2112.0,0.00373314]
[1770579240984,3.85999305,2112.5,2111.7,3.60395783]
[1770579241186,3.85999305,2112.4,2111.7,3.60395783]
[1770579242083,0.00534726,2112.4,2111.7,3.60840011]
[1770579242289,0.00534726,2112.4,2111.7,6.44104466]
[1770579242485,0.00534726,2112.4,2111.8,3.60395783]
[1770579243089,46.32238947,2112.9,2112.0,3.60395783]
[1770579243285,3.85999305,2112.8,2112.0,3.60395783]
[1770579243485,3.85999305,2112.8,2112.2,3.60395783]
[1770579243687,26.559,2113.0,2112.2,3.60395783]
[1770579243992,3.85999305,2112.9,2112.3,3.60395783]
[1770579247582,26.56276611,2113.0,2112.3,3.60395783]
[1770579247786,3.85999305,2112.9,2112.3,3.60395783]
[1770579250192,3.85999305,2112.9,2112.1,3.84085783]
[1770579252497,3.85999305,2112.9,2112.2,3.60395783]
[1770579252692,26.56276611,2113.0,2112.2,3.60395783]
[1770579252901,30.42275916,2113.0,2112.2,3.84085783]
[1770579253090,3.85999305,2113.2,2112.5,3.60395783]
[1770579253998,3.86557439,2113.2,2112.5,3.60395783]
[1770579257001,3.86557439,2113.2,2112.6,3.89763132]
[1770579262098,3.71031542,2113.0,2112.4,4.13451132]
[1770579263499,3.71589676,2113.2,2112.7,1.1654272]
[1770579263699,3.71031542,2113.3,2112.8,3.89763132]
[1770579264704,3.71497663,2113.3,2112.8,3.89763132]
[1770579265908,3.71031542,2113.6,2112.8,3.89763132]
[1770579266901,3.71521951,2113.6,2112.8,3.89763132]
[1770579267297,3.71521951,2113.6,2112.7,0.23684]
[1770579267298,0.00490409,2113.6,2113.1,3.89763132]
[1770579267602,3.71031542,2114.0,2113.1,4.13442132]
[1770579268102,3.71031542,2114.0,2112.9,2.83264455]
[1770579268103,3.71031542,2113.9,2112.9,3.89763132]
[1770579268509,3.71031542,2113.8,2112.7,3.89763132]
[1770579269803,3.71031542,2113.8,2112.6,0.23685]
[1770579269804,3.71031542,2113.7,2112.6,0.23685]
[1770579270006,3.71031542,2113.5,2112.6,4.13448132]
[1770579273010,3.71031542,2113.4,2112.6,3.89763132]
[1770579277415,3.71031542,2113.3,2112.6,3.89763132]
[1770579279515,3.71031542,2113.3,2112.4,3.89763132]
[1770579279715,3.71031542,2113.2,2112.4,3.89763132]
[1770579279918,3.71031542,2113.1,2112.4,3.89763132]
[1770579291434,3.71031542,2113.1,2112.3,3.86619289]
[1770579295736,32.44262039,2113.2,2112.4,3.86619289]
[1770579295937,3.86462039,2113.1,2112.4,3.86619289]
[1770579299332,3.86462039,2113.1,2112.4,2.83264455]
[1770579299534,3.86462039,2113.1,2112.5,3.86619289]
[1770579300237,28.578,2113.2,2112.5,3.86619289]
[1770579300538,3.86462039,2113.1,2112.5,3.86619289]
[1770579302336,28.578,2113.2,2112.5,3.86619289]
[1770579302537,28.578,2113.2,2112.6,3.86619289]
[1770579302734,42.46239642,2113.5,2112.7,3.86619289]
[1770579302939,46.32701681,2113.6,2112.8,3.86619289]
[1770579303140,29.927,2113.7,2113.0,3.86619289]
[1770579303338,33.79162039,2113.7,2113.0,3.86619289]
[1770579304437,3.86462039,2113.6,2113.0,3.86619289]
[1770579306837,29.927,2113.7,2113.0,3.86619289]
[1770579306838,3.86462039,2113.8,2113.1,0.2368]
[1770579307041,3.87026485,2113.9,2113.2,3.86619289]
[1770579307243,3.87026485,2113.9,2113.2,3.87212438]
[1770579307844,3.87026485,2113.9,2113.2,4.10891438]
[1770579308544,3.87026485,2113.9,2113.2,0.00593149]
[1770579309547,3.87026485,2113.9,2113.2,3.87212438]
[1770579313842,0.00564446,2113.9,2113.2,3.87212438]
[1770579314048,3.87026485,2113.9,2113.2,3.87212438]
[1770579315041,3.87026485,2113.9,2113.2,0.00593149]
[1770579317847,3.87026485,2113.9,2112.7,17.54264455]
[1770579318046,3.9711559,2113.7,2112.7,3.91859178]
[1770579318245,3.9711559,2113.5,2112.7,3.91859178]
[1770579318952,3.9711559,2113.5,2112.7,3.92466496]
[1770579324852,3.9711559,2113.4,2112.7,3.92466496]
[1770579330752,34.5721559,2113.6,2112.8,3.91859178]
[1770579330956,3.9711559,2113.5,2112.8,3.91859178]
[1770579331353,46.43919678,2113.9,2112.9,3.91859178]
[1770579331661,3.97680036,2113.9,2113.2,3.91859178]
[1770579332059,3.9711559,2113.8,2113.0,3.91859178]
[1770579336859,0.00564446,2113.9,2113.7,3.91859178]
[1770579337069,3.9711559,2114.1,2113.7,3.91859178]
[1770579338063,3.97589474,2114.1,2113.7,3.91859178]
[1770579338763,3.97589474,2114.1,2113.4,1.16429144]
[1770579338960,3.97589474,2114.1,2113.5,3.91859178]
[1770579341768,3.9711559,2114.3,2113.5,3.91859178]
[1770579342768,3.97723877,2114.3,2113.5,3.91859178]
[1770579345571,3.97723877,2114.3,2113.4,3.81278705]
[1770579346272,3.94829403,2114.2,2113.4,3.81278705]
[1770579346869,3.94829403,2114.2,2113.3,0.23677]
[1770579347070,3.94829403,2114.2,2113.3,4.04955705]
[1770579352576,3.94829403,2114.2,2113.1,3.81278705]
[1770579352881,3.94829403,2114.1,2113.1,3.81278705]
[1770579355479,3.94829403,2114.0,2113.1,3.81278705]
[1770579356283,3.94829403,2113.9,2113.1,3.81278705]
[1770579359285,3.94829403,2113.8,2113.1,3.81278705]
[1770579361388,3.94829403,2113.8,2112.9,6.63779752]
[1770579361585,3.94829403,2113.7,2112.9,3.81278705]
[1770579361786,46.41069045,2113.9,2113.0,3.81278705]
[1770579362390,3.94829403,2113.8,2113.0,3.81278705]
[1770579362788,42.46239642,2113.9,2113.1,0.2368]
[1770579362980,0.00608287,2114.3,2113.7,3.81278705]
[1770579362981,42.46847929,2114.3,2113.7,3.81278705]
[1770579363186,46.41677332,2114.3,2113.7,3.81278705]
[1770579363586,3.9543769,2114.3,2113.9,3.81278705]
[1770579363787,3.0400581,2114.5,2113.9,3.81278705]
[1770579364387,2.09402906,2114.5,2113.9,3.81278705]
[1770579364690,2.0985578,2114.5,2113.9,3.81278705]
[1770579377408,2.0985578,2114.5,2113.7,3.88757441]
[1770579387217,44.56095422,2114.5,2113.7,3.88757441]
[1770579387511,4.0353243,2114.4,2113.7,3.88757441]
[1770579389820,4.0353243,2114.3,2113.7,3.88757441]
[1770579392314,4.0353243,2114.2,2113.7,3.88757441]
[1770579393519,4.0353243,2114.1,2113.5,3.88757441]
[1770579393717,46.49772072,2114.1,2113.5,3.88757441]
[1770579393919,4.0353243,2114.0,2113.5,3.88757441]
[1770579396931,4.0353243,2114.0,2113.3,21.90558488]
[1770579397232,4.0353243,2114.0,2113.3,3.88757441]
[1770579401227,4.0353243,2113.9,2113.3,3.88757441]
[1770579401833,4.0353243,2113.7,2113.1,3.88757441]
[1770579402431,41.98341516,2114.5,2113.7,3.88757441]
[1770579402628,0.00452874,2114.5,2113.7,3.88757441]
[1770579403028,4.03985304,2114.5,2113.7,3.88757441]
[1770579408129,4.03985304,2114.5,2113.6,7.41316649]
[1770579408337,4.03985304,2114.5,2113.5,4.58815602]
[1770579408533,4.56506659,2114.4,2113.5,4.58815602]
[1770579410932,1.164773,2114.3,2113.3,4.58815602]
[1770579411139,4.56506659,2114.1,2113.3,4.58815602]
[1770579419043,4.56506659,2114.0,2113.3,4.58815602]
[1770579421344,4.56506659,2114.2,2113.4,4.58815602]
[1770579428955,4.56506659,2114.2,2113.2,0.23678]
[1770579428956,4.56506659,2114.2,2113.2,4.58815602]
[1770579429162,4.56506659,2113.8,2113.1,4.58815602]
[1770579430960,4.56506659,2113.8,2112.8,4.58815602]
[1770579431356,4.56506659,2113.7,2112.8,4.58815602]
[1770579432462,4.56506659,2113.4,2112.8,4.58815602]
[1770579434961,4.56506659,2113.4,2112.7,0.00607318]
[1770579435170,4.66635227,2113.3,2112.7,0.00607318]
[1770579436167,5.83112527,2113.3,2112.5,24.18922017]
[1770579436477,4.66635227,2113.1,2112.5,18.41272]
[1770579436670,4.66635227,2113.1,2112.5,16.31000562]
[1770579437470,4.66635227,2113.1,2112.5,16.31379108]
[1770579438068,4.66635227,2113.0,2112.5,16.31379108]
[1770579438268,4.67151223,2113.0,2112.5,16.31379108]
[1770579438469,4.67151223,2113.0,2112.5,0.00378546]
[1770579438670,4.67151223,2113.0,2112.3,4.83250017]
[1770579439666,4.67151223,2113.0,2112.3,4.837376]
[1770579441368,0.00515996,2113.0,2112.3,4.837376]
[1770579442073,4.67151223,2113.0,2112.3,4.837376]
[1770579445576,4.66635227,2112.9,2112.3,4.837376]
[1770579458081,47.11562846,2112.9,2112.3,4.837376]
[1770579458392,4.66635227,2112.8,2112.3,4.837376]
[1770579458777,42.44927619,2112.9,2112.3,4.837376]
[1770579458982,73.06143615,2113.0,2112.3,4.837376]
[1770579460187,77.72778842,2113.0,2112.3,4.837376]
[1770579461091,42.44927619,2112.9,2112.3,4.837376]
[1770579462490,4.66635227,2112.8,2112.3,4.837376]
[1770579463794,77.72778842,2113.0,2112.3,4.837376]
[1770579464195,42.44927619,2112.9,2112.3,4.837376]
[1770579467799,47.11834225,2112.9,2112.3,4.837376]
[1770579468498,4.66906606,2112.8,2112.3,4.837376]
[1770579469802,42.44927619,2112.9,2112.3,4.837376]
[1770579470503,47.11834225,2112.9,2112.3,4.837376]
[1770579472605,4.66906606,2112.9,2112.3,4.837376]
[1770579476505,77.73050221,2113.0,2112.5,4.69765843]
[1770579476709,30.61215996,2113.0,2112.5,4.69765843]
[1770579476905,0.00515996,2113.0,2112.7,4.69765843]
[1770579477105,4.66906606,2113.4,2112.9,0.44580798]
[1770579477308,4.66906606,2113.4,2113.1,1.48052294]
[1770579478005,4.67340693,2113.4,2113.1,1.48052294]
[1770579478811,4.67340693,2113.4,2113.0,2.64440313]
[1770579479812,4.67340693,2113.4,2113.1,1.48808515]
[1770579480714,4.67340693,2113.4,2113.0,2.92186095]
[1770579481013,4.67340693,2113.4,2113.1,1.75586142]
[1770579481609,4.90766911,2113.8,2113.3,1.76107592]
[1770579481803,4.90766911,2113.8,2113.4,2.92726848]
[1770579482212,4.90766911,2113.8,2113.4,1.76107592]
[1770579482712,4.91333526,2113.8,2113.3,1.80616967]
[1770579483614,4.9160011,2114.5,2113.6,1.16619256]
[1770579483916,4.9160011,2114.3,2113.6,3.03534577]
[1770579484909,4.92110384,2114.3,2113.6,3.03534577]
[1770579485109,4.92110384,2114.3,2113.6,1.86915321]
[1770579485614,4.92110384,2114.3,2113.5,1.89512302]
[1770579500024,4.92110384,2114.3,2113.6,1.16619256]
[1770579500225,4.92110384,2114.3,2113.7,3.09178897]
[1770579501724,5.89963591,2114.3,2113.8,4.35627148]
[1770579502026,5.89963591,2114.3,2113.8,0.00546185]
[1770579502627,5.89453317,2114.0,2113.3,3.22760791]
[1770579503127,5.89453317,2114.0,2113.4,3.22917901]
[1770579503725,5.89453317,2114.0,2113.4,3.23366145]
[1770579505229,5.89453317,2114.0,2113.4,6.04048974]
[1770579505830,5.89453317,2114.0,2113.4,3.23366145]
[1770579506131,5.89453317,2114.0,2113.4,10.63954119]
[1770579506331,5.89453317,2114.0,2113.5,4.59932872]
[1770579506531,5.89453317,2114.0,2113.4,6.04048974]
[1770579506727,5.89453317,2114.0,2113.5,7.94748208]
[1770579507030,5.89453317,2114.0,2113.5,3.34809651]
[1770579508133,5.89453317,2114.0,2113.5,10.75618699]
[1770579508332,5.89453317,2114.0,2113.5,6.1549248]
[1770579511335,5.89453317,2114.0,2113.6,2.80682829]
[1770579511633,5.89453317,2114.0,2113.6,7.41439828]
[1770579516240,5.89453317,2114.0,2113.6,11.17771795]
[1770579516539,5.89453317,2114.2,2113.7,3.80294121]
[1770579516836,5.89453317,2114.2,2113.8,3.80294121]
[1770579517235,0.00510274,2114.3,2113.8,4.96913377]
[1770579517434,5.89453317,2114.6,2114.1,3.84321475]
[1770579517634,5.89453317,2114.6,2114.0,2.80682829]
[1770579517933,5.89453317,2114.6,2114.1,7.40152002]
[1770579518132,5.89453317,2114.6,2114.1,4.59469173]
[1770579518333,5.90025474,2114.6,2114.0,6.65004304]
[1770579521041,5.90025474,2114.6,2114.1,3.91212546]
[1770579522638,4.19390781,2114.6,2114.1,3.91212546]
[1770579524328,0.00572157,2114.6,2114.1,3.91212546]
[1770579524837,0.00572157,2114.6,2114.2,5.8783682]
[1770579525046,6.77633827,2115.0,2114.3,5.95125349]
[1770579525544,6.77633827,2115.0,2114.4,5.99546851]
[1770579526038,6.78183723,2115.0,2114.4,5.99546851]
[1770579527545,0.00549896,2115.0,2114.5,6.05464069]
[1770579527739,0.00549896,2115.0,2114.5,6.36177766]
[1770579528144,6.77633827,2115.7,2114.5,6.36177766]
[1770579528344,6.77633827,2115.7,2114.8,6.1093411]
[1770579528541,6.77633827,2115.7,2114.9,6.1093411]
[1770579529047,30.589,2116.3,2115.1,6.11035465]
[1770579529048,6.77633827,2116.2,2115.1,6.11035465]
[1770579529240,6.78125222,2116.2,2115.3,6.11035465]
[1770579530144,6.78125222,2116.2,2115.5,6.09999719]
[1770579531040,6.77633827,2116.9,2116.0,6.14187919]
[1770579531238,6.77633827,2116.9,2116.1,6.14187919]
[1770579531948,0.00443368,2116.9,2116.3,6.18274816]
[1770579532645,6.77633827,2117.9,2116.5,1.1640251]
[1770579532839,6.77633827,2117.9,2116.7,6.42415466]
[1770579533749,6.78218923,2117.9,2116.7,6.42974146]
[1770579533948,6.77633827,2117.6,2116.7,6.19334146]
[1770579534148,6.77633827,2117.6,2116.7,0.0055868]
[1770579534643,6.77633827,2117.6,2116.7,6.3964364]
[1770579535148,6.77633827,2117.6,2116.1,0.23646]
[1770579535149,6.77633827,2117.6,2116.2,6.3908496]
[1770579536043,6.77633827,2117.6,2116.2,6.39610576]
[1770579536550,6.77633827,2117.6,2116.2,0.00525616]
[1770579536945,6.77633827,2117.6,2116.2,6.39610576]
[1770579540353,6.77633827,2117.6,2116.2,0.00525616]
[1770579540554,7.01263827,2117.6,2116.2,0.00525616]
[1770579540851,6.77633827,2117.4,2115.8,6.3908496]
[1770579541249,6.77633827,2117.4,2116.3,6.3908496]
[1770579541444,6.77633827,2117.4,2116.5,6.3908496]
[1770579541655,6.77633827,2117.6,2116.5,6.6272696]
[1770579541851,6.77633827,2117.8,2116.5,6.63293438]
[1770579542156,0.00585096,2117.9,2116.8,6.3908496]
[1770579542456,6.78218923,2117.9,2116.8,6.3908496]
[1770579542648,6.78218923,2117.9,2116.8,6.6272296]
[1770579542850,6.77633827,2118.2,2117.2,6.3908496]
[1770579543154,6.77633827,2118.2,2117.3,6.3908496]
[1770579543747,6.77633827,2118.2,2117.5,6.3908496]
[1770579544054,6.78081213,2118.2,2117.5,6.3908496]
[1770579544848,6.78081213,2118.2,2117.3,6.3908496]
[1770579545758,0.00447386,2118.2,2117.3,6.3908496]
[1770579546055,0.00447386,2118.2,2117.3,6.6271696]
[1770579546850,6.77633827,2118.6,2117.7,0.23628]
[1770579547051,1.08495,2121.6,2118.0,6.3908496]
[1770579547052,6.77633827,2120.0,2118.0,6.3908496]
[1770579547256,6.77633827,2119.6,2118.0,6.3908496]
[1770579547455,6.77633827,2119.6,2118.1,0.23624]
[1770579547649,6.77633827,2119.6,2118.2,6.6270796]
[1770579547950,6.78003255,2119.6,2118.2,6.63201575]
[1770579548362,6.78003255,2119.6,2118.2,0.00493615]
[1770579548961,6.78003255,2119.6,2118.2,6.38639149]
[1770579550450,6.78003255,2119.6,2118.2,0.00493615]
[1770579550649,6.78003255,2119.6,2118.2,6.35460912]
[1770579550861,6.78003255,2119.6,2118.2,0.00493615]
[1770579551058,7.01610255,2119.6,2118.2,0.00493615]
[1770579553657,6.77633827,2119.3,2118.1,6.38052486]
[1770579553857,6.77633827,2119.3,2117.7,6.3908496]
[1770579554653,7.01244827,2119.3,2117.7,0.00496527]
[1770579555358,7.01244827,2119.3,2117.7,6.69737174]
[1770579556053,6.77633827,2119.3,2117.7,6.93365174]
[1770579556455,7.53496196,2119.1,2117.7,0.00496527]
[1770579556759,7.53496196,2118.9,2117.7,0.00496527]
[1770579558362,7.77111196,2118.9,2117.7,0.00496527]
[1770579560258,7.53496196,2118.5,2117.0,6.64413452]
[1770579561464,7.53496196,2118.5,2117.0,6.64937014]
[1770579562165,7.77116196,2118.5,2117.0,6.64937014]
[1770579564268,7.77121196,2118.0,2116.6,6.84446711]
[1770579564464,7.53496196,2117.8,2116.6,6.84446711]
[1770579565368,7.54091533,2117.8,2116.6,6.84996012]
[1770579568370,7.53496196,2117.6,2116.6,0.00549301]
[1770579568569,7.53496196,2117.6,2116.6,6.98177277]
[1770579569865,7.53496196,2117.6,2116.6,0.00549301]
[1770579570067,7.77126196,2117.6,2116.2,7.00019431]
[1770579570471,7.53496196,2117.4,2115.9,7.0352183]
[1770579570967,7.53496196,2117.4,2116.0,11.52090788]
[1770579571270,7.53496196,2117.4,2116.1,7.03497389]
[1770579573769,0.00595337,2117.8,2116.1,7.03497389]
[1770579573969,7.53496196,2117.7,2116.5,7.03739976]
[1770579574569,0.00595337,2117.8,2116.6,7.04016574]
[1770579574770,0.00595337,2117.8,2116.7,7.04016574]
[1770579574966,0.00595337,2117.8,2116.7,9.80294334]
[1770579575170,0.00046036,2117.8,2116.9,9.80259063]
[1770579575371,0.00046036,2117.8,2117.0,7.03981303]
[1770579576470,7.53542232,2117.8,2117.0,7.03981303]
[1770579578179,7.53542232,2117.8,2116.8,7.09879234]
[1770579584686,7.53542232,2117.8,2116.6,20.4307776]
[1770579584893,7.53496196,2117.5,2116.4,7.18119332]